Workbook

Sheet Chezy-összetett
A1: Minta keresztszelvény tervezés és ellenőrzés (Chezy formula alkalmazásával)
A3: A kék és sárga mezők szabadon felvehetők.
A4: b értékét általában 10 cm-re kerek értékre vegyék fel, h értéke automatikusan számítódik 1 cm pontosan
A6: Keresztszelvény alakja: | D6: összetett trapéz szelvény (b1, b2, h1, h2, ρ1, ρ2, k1, k2, S)
D7: (az adatok a Részletes feladatkiírás szerint értelmezendők. lsd. 10. oldal)
A8: Tervezés mértékadó vízhozamra:
A9: Qmért.= | B9: 34.69 | C9: m3/s | D9: vkh1= | E9: 2.5 | F9: m/s | G9: vkh2= | H9: 2.5 | I9: m/s
A10: S= | B10: 2 | C10: ‰ | D10: k1= | E10: 50 | F10: m⅓/s | G10: k2= | H10: 50 | I10: m⅓/s
D11: ρ1= | E11: 0 | G11: ρ2= | H11: 1.5
B12: b1 (m) | C12: h1 (m) | D12: b2 (m) | E12: h2 (m) | F12: A1 (m2) | G12: P1 (m) | H12: R1 (m) | I12: v1 (m/s) | J12: vkh1 ell. | K12: A2 (m2) | L12: P2 (m) | M12: R2 (m) | N12: v2 (m/s) | O12: vkh2 ell. | P12: Q1szám. (m3/s) | Q12: Q2szám. (m3/s) | R12: Qszám. (m3/s) | S12: Qmért. ell.
A13: 1. változat | B13: 0.5 | C13: 0.5 | D13: 2 | E13: =h2_Összetett_szelvény($B$9,$E$10,$H$10,$E$11,$H$11,$B$10,B13,D13,C13) -> 1.889999986 | F13: =B13*C13+$E$11*C13*C13+E13*(B13+2*$E$11*C13) -> 1.194999993 | G13: =B13+2*C13*SQRT(1+$E$11*$E$11) -> 1.5 | H13: =F13/G13 -> 0.7966666619 | I13: =$E$10*POWER(H13,2/3)*SQRT($B$10/1000) -> 1.9216285 | J13: =IF($E$9>I13,"OK","NEM") -> OK | K13: =2*D13*E13+$H$11*E13*E13 -> 12.91814986 | L13: =2*(D13+E13*SQRT(1+$H$11*$H$11)) -> 10.81449186 | M13: =K13/L13 -> 1.194522131 | N13: =$H$10*POWER(M13,2/3)*SQRT($B$10/1000) -> 2.517374348 | O13: =IF($H$9>N13,"OK","NEM") -> NEM | P13: =ROUND(I13*F13,2) -> 2.3 | Q13: =ROUND(N13*K13,2) -> 32.52 | R13: =P13+Q13 -> 34.82 | S13: =IF(R13>=$B$9,"OK","NEM") -> OK | T13: =IF(R13>$B$9*1.03,"De túlméretezett!!! Csökkentse a b vagy h értékét.","") -> 
A14: 2. változat | B14: 0.8 | C14: 0.5 | D14: 1 | E14: =h2_Összetett_szelvény($B$9,$E$10,$H$10,$E$11,$H$11,$B$10,B14,D14,C14) -> 2.210000038 | F14: =B14*C14+$E$11*C14*C14+E14*(B14+2*$E$11*C14) -> 2.168000031 | G14: =B14+2*C14*SQRT(1+$E$11*$E$11) -> 1.8 | H14: =F14/G14 -> 1.204444461 | I14: =$E$10*POWER(H14,2/3)*SQRT($B$10/1000) -> 2.531295545 | J14: =IF($E$9>I14,"OK","NEM") -> NEM | K14: =2*D14*E14+$H$11*E14*E14 -> 11.74615033 | L14: =2*(D14+E14*SQRT(1+$H$11*$H$11)) -> 9.968268456 | M14: =K14/L14 -> 1.178354132 | N14: =$H$10*POWER(M14,2/3)*SQRT($B$10/1000) -> 2.494607488 | O14: =IF($H$9>N14,"OK","NEM") -> OK | P14: =ROUND(I14*F14,2) -> 5.49 | Q14: =ROUND(N14*K14,2) -> 29.3 | R14: =P14+Q14 -> 34.79 | S14: =IF(R14>=$B$9,"OK","NEM") -> OK | T14: =IF(R14>$B$9*1.03,"De túlméretezett!!! Csökkentse a b vagy h értékét.","") -> 
A15: 3. változat | B15: 0.7 | C15: 0.5 | D15: 1.1 | E15: =h2_Összetett_szelvény($B$9,$E$10,$H$10,$E$11,$H$11,$B$10,B15,D15,C15) -> 2.200000048 | F15: 1.890000033 | G15: 1.7 | H15: 1.111764726 | I15: 2.399718295 | J15: OK | K15: 12.10000042 | L15: 10.13221298 | M15: 1.194211022 | N15: 2.516937235 | O15: NEM | P15: 4.54 | Q15: 30.45 | R15: 34.99 | S15: OK
A16: 4. változat | B16: 0.6 | C16: 0.5 | D16: 1.2 | E16: 2.180000067 | F16: 1.60800004 | G16: 1.6 | H16: 1.005000025 | I16: 2.243515377 | J16: OK | K16: 12.3606006 | L16: 10.26010202 | M16: 1.204724921 | N16: 2.531688478 | O16: NEM | P16: 3.61 | Q16: 31.29 | R16: 34.9 | S16: OK
A19: Ellenőrzés kisvízhozamra:
A20: KQ= | B20: 0.12 | C20: m3/s | D20: vmin= | E20: 0.5 | F20: m/s
B21: b1 (m) | C21: h1KQ (m) | D21: A (m2) | E21: P (m) | F21: R (m) | G21: v (m/s) | H21: vmin ell. | I21: Qszám. (m3/s) | J21: KQ ell.
A22: 1. változat | B22: =B13 -> 0.5 | C22: =h_Trapéz_szelvény($B$20,$E$10,$E$11,$B$10,B22) -> 0.3799999952 | D22: =B22*C22+$E$11*C22*C22 -> 0.1899999976 | E22: =B22+2*C22*SQRT(1+$E$11*$E$11) -> 1.25999999 | F22: =D22/E22 -> 0.15079365 | G22: =$E$10*POWER(F22,2/3)*SQRT($B$10/1000) -> 0.6334908863 | H22: =IF($E$20<=G22,"OK","NEM") -> OK | I22: =ROUND(G22*D22,2) -> 0.12 | J22: =IF(AND(I22>$B$20*0.9,I22<$B$20*1.1),"OK","NEM") -> OK | K22: =IF(C22>C13," Figyelem! h1KQ nem lehet nagyobb mint h1","") -> 
A23: 2. változat | B23: =B14 -> 0.8 | C23: =h_Trapéz_szelvény($B$20,$E$10,$E$11,$B$10,B23) -> 0.2399999946 | D23: =B23*C23+$E$11*C23*C23 -> 0.1919999957 | E23: =B23+2*C23*SQRT(1+$E$11*$E$11) -> 1.279999989 | F23: =D23/E23 -> 0.1499999979 | G23: =$E$10*POWER(F23,2/3)*SQRT($B$10/1000) -> 0.6312661531 | H23: =IF($E$20<=G23,"OK","NEM") -> OK | I23: =ROUND(G23*D23,2) -> 0.12 | J23: =IF(AND(I23>$B$20*0.9,I23<$B$20*1.1),"OK","NEM") -> OK | K23: =IF(C23>C14," Figyelem! h1KQ nem lehet nagyobb mint h1","") -> 
A24: 3. változat | B24: 0.7 | C24: 0.2700000107 | D24: 0.1890000075 | E24: 1.240000021 | F24: 0.1524193583 | G24: 0.6380358594 | H24: OK | I24: 0.12 | J24: =IF(AND(I24>$B$20*0.9,I24<$B$20*1.1),"OK","NEM") -> OK
A25: 4. változat | B25: 0.6 | C25: 0.3199999928 | D25: 0.1919999957 | E25: 1.239999986 | F25: 0.154838708 | G25: 0.6447698106 | H25: OK | I25: 0.12 | J25: =IF(AND(I25>$B$20*0.9,I25<$B$20*1.1),"OK","NEM") -> OK
